fUSD/lending_fUSD_20260203
["ID","MTS","AMOUNT","RATE_DAILY","PERIOD"]
[404371850,1770082256065,-692.662916,0.00015757,2]
[404371851,1770082256074,-2046.29193704,0.00015807,2]
[404371852,1770082256084,-156.52398,0.00015872,2]
[404371853,1770082256093,-156.52398,0.00015872,2]
[404371854,1770082256102,-156.52398,0.00015872,2]
[404371855,1770082256111,-156.52398,0.00015872,2]
[404371856,1770082256120,-734.77,0.0001589,2]
[404371857,1770082256129,-500.0,0.0001589,2]
[404371858,1770082256138,-1072.77,0.0001589,2]
[404371859,1770082256147,-2500.0,0.0001589,2]
[404371860,1770082256156,-1910.18787185,0.00015893,2]
[404371861,1770082256166,-280.03725112,0.00015893,2]
[404371862,1770082256175,-233.51889341,0.00015893,2]
[404371863,1770082256184,-5532.0,0.000159,3]
[404371864,1770082256193,-1000.0,0.00015906,2]
[404371865,1770082256206,-1000.0,0.00015906,2]
[404371866,1770082256215,-1000.0,0.00015906,2]
[404371867,1770082256224,-1000.0,0.00015906,2]
[404371868,1770082256233,-1000.0,0.00015906,2]
[404371869,1770082256242,-906.511,0.00015906,2]
[404371870,1770082256251,-500.0,0.00015908,2]
[404371871,1770082256260,-1000.0,0.00015918,2]
[404371872,1770082256269,-1083.29586456,0.00015952,2]
[404371873,1770082256278,-5018.19638745,0.0001596,2]
[404371874,1770082256287,-151.0,0.00015997,2]
[404371875,1770082256296,-151.0,0.00015997,2]
[404371876,1770082256305,-956.83032625,0.00016,2]
[404371877,1770082256315,-270.91542523,0.00016,2]
[404371878,1770082256324,-5954.33236777,0.00016,2]
[404371879,1770082256335,-9246.19327251,0.00016,4]
[404371880,1770082256347,-4592.69195026,0.00016,4]
[404371881,1770082256358,-10612.27299736,0.00016,4]
[404371882,1770082256527,-554.63057176,9.366e-05,2]
[404371883,1770082256536,-901.0,0.00010144,2]
[404371884,1770082256547,-728.0,0.00010144,2]
[404371885,1770082256556,-565.0,0.00010254,2]
[404371886,1770082256565,-482.99621585,0.00010363,2]
[404371887,1770082256575,-151.0,0.0001237,2]
[404371888,1770082256585,-18949.78956442,0.00016,4]
[404371889,1770082256599,-358815.39457188,0.00016,4]
[404371890,1770082256610,-4328.39428874,0.00016,4]
[404371891,1770082256622,-373.96952708,0.00016,4]
[404371892,1770082256632,-616.0,0.00016,4]
[404371893,1770082256643,-2486.13672743,0.00016,4]
[404371894,1770082256659,-3275.848593,0.00016,4]
[404371895,1770082256670,-791.07285415,0.00016,4]
[404371896,1770082256683,-10266.49973553,0.00016,4]
[404371897,1770082256699,-2481.96210965,0.00016,4]
[404371900,1770082272769,-150.0,9.103e-05,2]
[404371901,1770082300769,9700.01,8.674e-05,2]
[404371902,1770082300791,10000.01,8.674e-05,2]
[404371903,1770082300820,10000.01,8.674e-05,2]
[404371904,1770082300842,3592.3187,8.674e-05,2]
[404371994,1770082462670,500.0,8.773e-05,2]
[404371995,1770082462713,500.0,8.773e-05,2]
[404371996,1770082462748,500.0,8.773e-05,2]
[404371997,1770082462784,500.0,8.773e-05,2]
[404371998,1770082462821,500.0,8.773e-05,2]
[404371999,1770082462874,500.0,8.773e-05,2]
[404372000,1770082462912,500.0,8.773e-05,2]
[404372001,1770082462947,500.0,8.773e-05,2]
[404372002,1770082462983,500.0,8.773e-05,2]
[404372003,1770082463025,500.0,8.773e-05,2]
[404372004,1770082463065,0.01,8.773e-05,2]
[404372005,1770082463092,499.99,8.773e-05,2]
[404372006,1770082463135,500.0,8.773e-05,2]
[404372007,1770082463173,500.0,8.773e-05,2]
[404372008,1770082463212,500.0,8.773e-05,2]
[404372009,1770082463249,500.0,8.773e-05,2]
[404372010,1770082463288,500.0,8.773e-05,2]
[404372011,1770082463325,500.0,8.773e-05,2]
[404372012,1770082463362,500.0,8.773e-05,2]
[404372013,1770082463405,500.0,8.773e-05,2]
[404372014,1770082463651,500.0,8.773e-05,2]
[404372015,1770082463689,500.0,8.773e-05,2]
[404372016,1770082463735,497.57002624,8.773e-05,2]
[404372017,1770082463773,410.13127376,8.773e-05,2]
[404372018,1770082463795,89.86872624,8.773e-05,2]
[404372019,1770082532047,500.0,8.673e-05,2]
[404372020,1770082532786,500.0,8.673e-05,2]
[404372021,1770082533109,500.0,8.673e-05,2]
[404372022,1770082533748,553.65874798,8.673e-05,2]
[404372023,1770082544884,500.0,8.773e-05,2]
[404372024,1770082544956,12.52038678,8.773e-05,2]
[404372025,1770082544983,487.47961322,8.773e-05,2]
[404372026,1770082545425,500.0,8.773e-05,2]
[404372027,1770082545537,500.0,8.773e-05,2]
[404372028,1770082545648,379.35877285,8.773e-05,2]
[404372029,1770082545676,120.64122715,8.773e-05,2]
[404372030,1770082545884,500.0,8.773e-05,2]
[404372031,1770082545932,93.36167121,8.773e-05,2]
[404372032,1770082545959,406.63832879,8.773e-05,2]
[404372033,1770082545997,500.0,8.773e-05,2]
[404372034,1770082546101,544.69375068,8.773e-05,2]
[404372035,1770082546149,500.0,8.773e-05,2]
[404372036,1770082546201,500.0,8.773e-05,2]
[404372037,1770082546245,500.0,8.773e-05,2]
[404372038,1770082546285,500.0,8.773e-05,2]
[404372039,1770082546347,500.0,8.773e-05,2]
[404372040,1770082558076,500.0,8.673e-05,2]
[404372041,1770082558116,500.0,8.673e-05,2]
[404372042,1770082558156,500.0,8.673e-05,2]
[404372043,1770082558211,500.0,8.673e-05,2]
[404372044,1770082558257,500.0,8.673e-05,2]
[404372045,1770082558294,500.0,8.673e-05,2]
[404372046,1770082558330,500.0,8.673e-05,2]
[404372047,1770082558389,405.15044631,8.673e-05,2]
[404372048,1770082558413,94.84955369,8.673e-05,2]
[404372049,1770082558450,500.0,8.673e-05,2]
[404372050,1770082578353,184.65654818,8.673e-05,2]
[404372051,1770082578837,500.0,8.673e-05,2]
[404372052,1770082579161,500.0,8.673e-05,2]
[404372053,1770082579494,500.0,8.673e-05,2]
[404372054,1770082579847,500.0,8.673e-05,2]
[404372055,1770082580171,500.0,8.673e-05,2]
[404372056,1770082585560,500.0,8.673e-05,2]
[404372057,1770082671279,1434.0,0.00023,120]
[404372080,1770083431631,-230.0,9.671e-05,2]
[404372081,1770083431641,-504.91789651,9.671e-05,2]
[404372082,1770083431653,-430.59119883,9.671e-05,2]
[404372083,1770083431685,-669.21090466,9.671e-05,2]
[404372084,1770083431695,-300.0,9.768e-05,2]
[404372085,1770083431705,-150.0,9.768e-05,2]
[404372086,1770083431715,-632.48399251,9.768e-05,2]
[404372087,1770083431752,-567.51600749,9.768e-05,2]
[404372088,1770083431761,-238.33199251,9.768e-05,2]
[404372089,1770083431797,-61.66800749,9.768e-05,2]
[404372090,1770083431806,-169.41536242,9.768e-05,2]
[404372091,1770083431816,-250.0,9.769e-05,2]
[404372092,1770083431826,-221.45425425,9.769e-05,2]
[404372093,1770083431837,-821.59373721,9.769e-05,2]
[404372095,1770083431909,-965.73893457,9.769e-05,2]
[404372096,1770083431918,-3430.29762545,9.769e-05,2]
[404372097,1770083431927,-9052.60970617,9.769e-05,2]
[404372098,1770083431936,-15969.87656179,9.769e-05,2]
[404372099,1770083431945,-250.0,9.797e-05,2]
[404372100,1770083431954,-151.1,9.8e-05,2]
[404372101,1770083431963,-226.66,9.8e-05,2]
[404372102,1770083431973,-150.00615836,0.0001,2]
[404372103,1770083431982,-500.0,0.00010074,2]
[404372104,1770083431991,-173.07272258,0.00010074,2]
[404372105,1770083432000,-500.0,0.00010074,2]
[404372106,1770083432009,-500.0,0.00010074,2]
[404372107,1770083432018,-500.0,0.00010074,2]
[404372108,1770083432027,-500.0,0.00010074,2]
[404372109,1770083432036,-500.0,0.00010074,2]
[404372110,1770083432045,-500.0,0.00010074,2]
[404372111,1770083432055,-500.0,0.00010074,2]
[404372112,1770083432064,-500.0,0.00010074,2]
[404372113,1770083432073,-500.0,0.00010074,2]
[404372114,1770083432083,-500.0,0.00010074,2]
[404372115,1770083432092,-500.0,0.00010074,2]
[404372116,1770083432101,-500.0,0.00010074,2]
[404372117,1770083432110,-500.0,0.00010074,2]
[404372118,1770083432119,-500.0,0.00010074,2]
[404372119,1770083432128,-500.0,0.00010074,2]
[404372120,1770083432137,-500.0,0.00010074,2]
[404372121,1770083432146,-500.0,0.00010074,2]
[404372122,1770083432156,-7046.34044911,0.00010269,2]
[404372123,1770083432168,-328.0184482,0.00010269,2]
[404372128,1770083437716,-5275.90333579,0.00010269,2]
[404372129,1770083437767,-352.98,0.00010269,2]
[404372130,1770083437779,-1680.96,0.00010269,2]
[404372131,1770083437821,-9205.77800775,0.00010269,2]
[404372132,1770083437831,-836.8576,0.00010422,2]
[404372133,1770083437840,-248.9,0.0001049,3]
[404372134,1770083437850,-460.65011179,0.00010512,2]
[404372135,1770083437860,-6056.78794675,0.00010512,2]
[404372136,1770083437869,-14472.34656378,0.00010512,2]
[404372137,1770083437879,-150.0,0.00010512,2]
[404372138,1770083437891,-2179.54498866,0.00010512,2]
[404372139,1770083437900,-500.0,0.00010512,2]
[404372140,1770083437909,-594.0,0.00010512,2]
[404372141,1770083437918,-150.0,0.00010512,2]
[404372142,1770083437927,-500.0,0.00010512,2]
[404372143,1770083437936,-500.0,0.00010512,2]
[404372144,1770083437945,-150.0,0.00010512,2]
[404372145,1770083437955,-151.0,0.00010519,2]
[404372146,1770083437964,-151.0,0.00010519,2]
[404372147,1770083437973,-500.0,0.00010521,2]
[404372148,1770083437983,-329.301094,0.00010521,2]
[404372150,1770083437992,-223.63864625,0.00010521,2]
[404372152,1770083438002,-500.0,0.00010521,2]
[404372154,1770083438011,-500.0,0.00010521,2]
[404372156,1770083438021,-500.0,0.00010521,2]
[404372158,1770083438030,-500.0,0.00010521,2]
[404372160,1770083438040,-500.0,0.00010521,2]
[404372163,1770083438050,-500.0,0.00010521,2]
[404372164,1770083438059,-500.0,0.00010521,2]
[404372166,1770083438069,-500.0,0.00010521,2]
[404372168,1770083438079,-500.0,0.00010521,2]
[404372171,1770083438093,-500.0,0.00010521,2]
[404372173,1770083438115,-500.0,0.00010521,2]
[404372174,1770083438136,-500.0,0.00010521,2]
[404372178,1770083438147,-500.0,0.00010521,2]
[404372180,1770083438157,-500.0,0.00010521,2]
[404372182,1770083438167,-184.24220096,0.00010521,2]
[404372184,1770083438177,-500.0,0.00010521,2]
[404372186,1770083438187,-500.0,0.00010521,2]
[404372188,1770083438197,-1091.03522689,0.00010521,3]
[404372190,1770083438208,-1091.03522689,0.00010521,3]
[404372192,1770083438217,-3037535.63671963,0.00010522,2]
[404372194,1770083438229,-770.74595098,0.00010522,2]
[404372196,1770083438241,-2889.84169753,0.00010522,2]
[404372198,1770083438253,-2418.07525,0.00010522,2]
[404372200,1770083438264,-490.0,0.00010522,2]
[404372203,1770083438283,-581.38049169,0.00010522,2]
[404372230,1770083438569,183.04,9.826e-05,3]
[404372270,1770083439806,-450.34283817,0.00010522,2]
[404372271,1770083439821,-2053.49494695,0.00010522,2]
[404372272,1770083439866,-689.72524371,0.00010522,2]
[404372273,1770083439922,-9502.95454108,0.00010522,2]
[404372274,1770083439932,-801.50537532,0.00010522,2]
[404372275,1770083439944,-308.90907109,0.00010522,2]
[404372276,1770083440135,-4354.95682808,0.00010522,2]
[404372277,1770083440153,-298.51436949,0.00010522,2]
[404372278,1770083440164,-435.88463301,0.00010522,2]
[404372279,1770083440175,-354.53810429,0.00010522,2]
[404372281,1770083440192,-1530.06652458,0.00010522,2]
[404372328,1770083443471,-9785.47891595,0.00010522,2]
[404372329,1770083443482,-2880.04780582,0.00010522,2]
[404372330,1770083443497,-302.96370876,0.00010522,2]
[404372331,1770083443508,-3184.6982721,0.00010522,2]
[404372332,1770083443520,-891.39,0.00010522,2]
[404372333,1770083443531,-465.08686962,0.00010522,2]
[404372334,1770083443589,-1289.72195257,0.00010522,2]
[404372335,1770083444312,-537.28319999,0.00010522,2]
[404372336,1770083444365,-5056.89909255,0.00010522,2]
[404372337,1770083444423,-475.776,0.00010522,2]
[404372338,1770083444435,-670.09065983,0.00010522,2]
[404372339,1770083444446,-181603.40727651,0.00010522,2]
[404372347,1770083445837,-21057.96339898,0.00010522,2]
[404372348,1770083445848,-6065.99581,0.00010522,2]
[404372349,1770083445859,-642.68983732,0.00010522,2]
[404372350,1770083445912,-5053.19474327,0.00010522,2]
[404372351,1770083445923,-432.60481996,0.00010522,2]
[404372352,1770083445934,-649.09208162,0.00010522,2]
[404372353,1770083445945,-513.3,0.00010522,2]
[404372354,1770083445956,-3030.75271145,0.00010522,2]
[404372355,1770083445968,-1384.00984328,0.00010522,2]
[404372356,1770083446002,-3110.30451518,0.00010522,2]
[404372357,1770083446016,-10266.49973553,0.00010522,2]
[404372358,1770083446027,-9124.9063609,0.00010522,2]
[404372359,1770083446213,-569.93088227,0.00010522,2]
[404372392,1770083474110,1091.03522689,9.973e-05,3]
[404372393,1770083474158,1091.03522689,9.973e-05,3]
[404372612,1770084094728,2914.65,9.087e-05,2]
[404372623,1770084255422,1000.0,0.00013,5]
[404372665,1770084473356,-1739.94,9.107e-05,2]
[404372784,1770084522180,-227.0,9.369e-05,2]
[404372785,1770084522210,-250.0,9.369e-05,2]
[404372786,1770084522237,-502.42489276,9.369e-05,2]
[404372787,1770084522264,-200.0,9.369e-05,2]
[404372788,1770084522290,-151.0,9.465e-05,2]
[404372789,1770084522315,-151.0,9.465e-05,2]
[404372790,1770084522344,-6056.78794675,9.468e-05,2]
[404372791,1770084532644,155.03,9.3e-05,2]
[404372792,1770084541528,150.0,9.467e-05,2]
[404372793,1770084541577,300.0,9.467e-05,2]
[404372794,1770084541706,300.0,9.467e-05,2]
[404372796,1770084548916,1556.75716049,9.468e-05,2]
[404372800,1770084576692,-928.76739197,9.468e-05,2]
[404372801,1770084576714,-173.59557781,9.468e-05,2]
[404372802,1770084601562,1200.0,9.467e-05,2]
[404372803,1770084601625,219.0,9.467e-05,2]
[404372804,1770084603268,228.0,9.468e-05,2]
[404372806,1770084609730,151.0,9.465e-05,2]
[404372807,1770084610312,151.0,9.465e-05,2]
[404372820,1770084631785,-1126.61412583,9.468e-05,2]
[404372821,1770084631797,-1920.5531114,9.468e-05,2]
[404372822,1770084631809,-483.60999621,9.468e-05,2]
[404372823,1770084631834,-531.0846381,9.468e-05,2]
[404372824,1770084631845,-299.23478,9.468e-05,2]
[404372825,1770084631887,-1208.60123647,9.468e-05,2]
[404372826,1770084631903,-4175.92582352,9.468e-05,2]
[404372827,1770084632001,-26765.97785374,9.468e-05,2]
[404372867,1770084635198,4037.85863116,9.468e-05,2]
[404372870,1770084637911,-3226212.09139243,9.468e-05,2]
[404372871,1770084637925,-748.26893567,9.468e-05,2]
[404372872,1770084637956,-38769.29775018,9.468e-05,2]
[404372873,1770084637969,-1185.97986445,9.468e-05,2]
[404372874,1770084638021,-2936.5044634,9.468e-05,2]
[404372875,1770084638036,-1773.16,9.468e-05,2]
[404373053,1770084639903,-588.00932753,9.468e-05,2]
[404373089,1770084640221,-191275.08670107,9.468e-05,2]
[404373091,1770084640232,-2500.0,9.468e-05,2]
[404373093,1770084640243,-15631.42574414,9.567e-05,2]
[404373095,1770084640254,-1000.0,9.567e-05,2]
[404373097,1770084640265,-378.86729225,9.567e-05,2]
[404373099,1770084640276,-223.63864625,9.567e-05,2]
[404373102,1770084640287,-500.0,9.567e-05,2]
[404373104,1770084640298,-500.0,9.567e-05,2]
[404373106,1770084640308,-500.0,9.567e-05,2]
[404373108,1770084640319,-341.92010159,9.567e-05,2]
[404373110,1770084640330,-500.0,9.567e-05,2]
[404373113,1770084640342,-500.0,9.567e-05,2]
[404373115,1770084640352,-500.0,9.567e-05,2]
[404373117,1770084640363,-500.0,9.567e-05,2]
[404373119,1770084640373,-500.0,9.567e-05,2]
[404373121,1770084640383,-500.0,9.567e-05,2]
[404373124,1770084640394,-500.0,9.567e-05,2]
[404373126,1770084640404,-500.0,9.567e-05,2]
[404373128,1770084640414,-500.0,9.567e-05,2]
[404373130,1770084640425,-500.0,9.567e-05,2]
[404373133,1770084640437,-500.0,9.567e-05,2]
[404373137,1770084640447,-500.0,9.567e-05,2]
[404373139,1770084640458,-500.0,9.567e-05,2]
[404373141,1770084640469,-500.0,9.567e-05,2]
[404373143,1770084640479,-500.0,9.567e-05,2]
[404373145,1770084640490,-500.0,9.567e-05,2]
[404373147,1770084640501,-500.0,9.567e-05,2]
[404373150,1770084640512,-314.11957558,9.567e-05,2]
[404373152,1770084640523,-500.0,9.567e-05,2]
[404373154,1770084640535,-500.0,9.567e-05,2]
[404373157,1770084640548,-500.0,9.567e-05,2]
[404373159,1770084640557,-500.0,9.567e-05,2]
[404373161,1770084640567,-499.99999999,9.567e-05,2]
[404373163,1770084640577,-500.0,9.567e-05,2]
[404373165,1770084640587,-500.0,9.567e-05,2]
[404373167,1770084640596,-350.0,9.567e-05,2]
[404373169,1770084640605,-9999.99,9.568e-05,2]
[404373205,1770084640614,-150.99,9.568e-05,2]
[404373210,1770084640961,-9999.99,9.568e-05,2]
[404373213,1770084640981,-9999.99,9.568e-05,2]
[404373215,1770084640990,-4999.99,9.568e-05,2]
[404373217,1770084641000,-1553.53,9.568e-05,2]
[404373219,1770084641009,-150.99,9.568e-05,2]
[404373221,1770084641019,-999.99,9.568e-05,2]
[404373223,1770084641028,-343.78,9.568e-05,2]
[404373225,1770084641037,-299.99,9.568e-05,2]
[404373227,1770084641046,-9999.99,9.568e-05,2]
[404373229,1770084641055,-500.0,9.569e-05,2]
[404373231,1770084641064,-10000.0,9.569e-05,2]
[404373233,1770084641073,-1852.42,9.577e-05,2]
[404373235,1770084641082,-4622.142,9.668e-05,2]
[404373236,1770084641091,-390.466,9.668e-05,2]
[404373239,1770084641101,-36317.0,9.839e-05,2]
[404373240,1770084641110,-500.0,9.843e-05,2]
[404373241,1770084641119,-172.0,9.878e-05,2]
[404373242,1770084641129,-202.38400694,9.916e-05,2]
[404373243,1770084641138,-500.0,9.919e-05,2]
[404373244,1770084641147,-1880.81357501,9.955e-05,2]
[404373245,1770084641156,-4963.49678184,9.955e-05,2]
[404373246,1770084641165,-8756.19666524,9.955e-05,2]
[404373248,1770084641176,-1000.0,0.0001,2]
[404373250,1770084641186,-496.05232197,0.0001,2]
[404373252,1770084641195,-200.0,0.0001,2]
[404373254,1770084641205,-151.0,0.0001,2]
[404373256,1770084641216,-151.0,0.0001,2]
[404373258,1770084641225,-151.0,0.0001,2]
[404373260,1770084641234,-151.0,0.0001,2]
[404373262,1770084641243,-151.0,0.0001,2]
[404373264,1770084641252,-151.0,0.0001,2]
[404373266,1770084641262,-151.0,0.0001,2]
[404373268,1770084641271,-151.0,0.0001,2]
[404373270,1770084641280,-151.0,0.0001,2]
[404373272,1770084641289,-151.0,0.0001,2]
[404373274,1770084641298,-151.0,0.0001,2]
[404373276,1770084641308,-151.0,0.0001,2]
[404373278,1770084641317,-151.0,0.0001,2]
[404373280,1770084641326,-151.0,0.0001,2]
[404373282,1770084641335,-151.0,0.0001,2]
[404373284,1770084641345,-151.0,0.0001,2]
[404373286,1770084641354,-151.0,0.0001,2]
[404373288,1770084641363,-151.0,0.0001,2]
[404373290,1770084641372,-151.0,0.0001,2]
[404373292,1770084641381,-151.0,0.0001,2]
[404373294,1770084641390,-200.0,0.0001,2]
[404373296,1770084641399,-500.0,0.0001,2]
[404373298,1770084641408,-500.0,0.0001,2]
[404373300,1770084641416,-500.0,0.0001,2]
[404373302,1770084641426,-500.0,0.0001,2]
[404373304,1770084641434,-500.0,0.0001,2]
[404373306,1770084641443,-500.0,0.0001,2]
[404373308,1770084641453,-500.0,0.0001,2]
[404373310,1770084641462,-500.0,0.0001,2]
[404373312,1770084641471,-500.0,0.0001,2]
[404373314,1770084641479,-500.0,0.0001,2]
[404373316,1770084641488,-151.0,0.0001,2]
[404373318,1770084641497,-500.0,0.0001,2]
[404373320,1770084641506,-151.0,0.0001,2]
[404373322,1770084641516,-500.0,0.0001,2]
[404373324,1770084641526,-151.0,0.0001,2]
[404373326,1770084641535,-151.0,0.0001,2]
[404373328,1770084641544,-151.0,0.0001,2]
[404373330,1770084641554,-151.0,0.0001,2]
[404373332,1770084641563,-151.0,0.0001,2]
[404373334,1770084641571,-151.0,0.0001,2]
[404373336,1770084641581,-151.0,0.0001,2]
[404373338,1770084641590,-151.0,0.0001,2]
[404373340,1770084641599,-151.0,0.0001,2]
[404373342,1770084641607,-500.0,0.0001,2]
[404373344,1770084641617,-500.0,0.0001,2]
[404373346,1770084641626,-500.0,0.0001,2]
[404373348,1770084641635,-500.0,0.0001,2]
[404373350,1770084641644,-500.0,0.0001,2]
[404373352,1770084641653,-500.0,0.0001,2]
[404373354,1770084641662,-500.0,0.0001,2]
[404373356,1770084641671,-500.0,0.0001,2]
[404373358,1770084641680,-500.0,0.0001,2]
[404373360,1770084641689,-500.0,0.0001,2]
[404373362,1770084641697,-500.0,0.0001,2]
[404373364,1770084641707,-150.00651624,0.0001,2]
[404373366,1770084641715,-595.70027952,0.0001,2]
[404373368,1770084641724,-595.70027952,0.0001,2]
[404373370,1770084641734,-500.0,0.00010074,2]
[404373372,1770084641742,-503.99784735,0.00010074,2]
[404373373,1770084641752,-500.0,0.00010074,2]
[404373376,1770084641761,-500.0,0.00010074,2]
[404373377,1770084641770,-500.0,0.00010074,2]
[404373379,1770084641779,-622.18622774,0.00010074,2]
[404373381,1770084641789,-500.0,0.00010074,2]
[404373383,1770084641798,-500.0,0.00010074,2]
[404373385,1770084641807,-500.0,0.00010074,2]
[404373387,1770084641816,-412.57925422,0.00010074,2]
[404373389,1770084641825,-500.0,0.00010074,2]
[404373391,1770084641835,-500.0,0.00010074,2]
[404373393,1770084641844,-153.7070239,0.00010074,2]
[404373396,1770084641853,-500.0,0.00010074,2]
[404373398,1770084641863,-500.0,0.00010074,2]
[404373399,1770084641876,-500.0,0.00010074,2]
[404373402,1770084641885,-500.0,0.00010074,2]
[404373404,1770084641894,-500.0,0.00010074,2]
[404373405,1770084641903,-500.0,0.00010074,2]
[404373407,1770084641914,-500.0,0.00010074,2]
[404373409,1770084641923,-500.0,0.00010074,2]
[404373410,1770084641932,-500.0,0.00010074,2]
[404373412,1770084641943,-500.0,0.00010074,2]
[404373414,1770084641951,-500.0,0.00010089,2]
[404373416,1770084641960,-150.0,0.00010089,2]
[404373418,1770084641969,-150.0,0.00010089,2]
[404373419,1770084641980,-500.0,0.00010089,2]
[404373421,1770084641989,-150.0,0.00010089,2]
[404373423,1770084641999,-487.0,0.00010089,2]
[404373424,1770084642007,-500.0,0.00010089,2]
[404373426,1770084642017,-500.0,0.00010089,2]
[404373428,1770084642027,-150.47155798,0.00010089,2]
[404373430,1770084642036,-500.0,0.00010089,2]
[404373431,1770084642045,-150.0,0.00010089,2]
[404373433,1770084642054,-500.0,0.00010089,2]
[404373435,1770084642063,-150.0,0.00010089,2]
[404373436,1770084642072,-1142.0,0.00010089,2]
[404373438,1770084642082,-576.0,0.00010089,2]
[404373440,1770084642090,-286.01508691,0.00010089,2]
[404373442,1770084642100,-656.0,0.00010089,2]
[404373444,1770084642109,-500.0,0.00010089,2]
[404373446,1770084642121,-614.0,0.00010089,2]
[404373447,1770084642131,-150.0,0.00010089,2]
[404373449,1770084642139,-500.0,0.00010089,2]
[404373451,1770084642149,-500.0,0.00010089,2]
[404373453,1770084642157,-1460.0,0.00010089,2]
[404373454,1770084642166,-500.0,0.00010089,2]
[404373456,1770084642176,-500.0,0.00010089,2]
[404373458,1770084642184,-500.0,0.00010089,2]
[404373460,1770084642193,-150.0,0.00010089,2]
[404373462,1770084642203,-494.0,0.00010089,2]
[404373463,1770084642211,-500.0,0.00010089,2]
[404373465,1770084642221,-150.0,0.00010089,2]
[404373467,1770084642231,-500.0,0.00010089,2]
[404373469,1770084642240,-500.0,0.00010117,2]
[404373470,1770084642248,-500.0,0.00010144,2]
[404373472,1770084642258,-150.0,0.00010144,2]
[404373474,1770084642268,-150.0,0.00010144,2]
[404373476,1770084642276,-500.0,0.00010144,2]
[404373477,1770084642285,-150.0,0.00010144,2]
[404373479,1770084642294,-487.0,0.00010144,2]
[404373481,1770084642303,-500.0,0.00010144,2]
[404373483,1770084642312,-500.0,0.00010144,2]
[404373485,1770084642321,-500.0,0.00010144,2]
[404373486,1770084642330,-155.97893314,0.00010144,2]
[404373488,1770084642339,-500.0,0.00010144,2]
[404373490,1770084642348,-150.0,0.00010144,2]
[404373492,1770084642357,-1142.0,0.00010144,2]
[404373494,1770084642366,-576.0,0.00010144,2]
[404373495,1770084642375,-656.0,0.00010144,2]
[404373497,1770084642384,-500.0,0.00010144,2]
[404373499,1770084642393,-614.0,0.00010144,2]
[404373501,1770084642402,-250.40130265,0.00010144,2]
[404373503,1770084642411,-500.0,0.00010144,2]
[404373504,1770084642420,-500.0,0.00010144,2]
[404373506,1770084642429,-1460.0,0.00010144,2]
[404373508,1770084642437,-500.0,0.00010144,2]
[404373510,1770084642446,-416.28854009,0.00010144,2]
[404373512,1770084642455,-500.0,0.00010144,2]
[404373514,1770084642464,-494.0,0.00010144,2]
[404373515,1770084642473,-500.0,0.00010144,2]
[404373517,1770084642482,-500.0,0.00010144,2]
[404373519,1770084642491,-151.0,0.00010166,2]
[404373521,1770084642499,-844730.4488,0.00010169,2]
[404373523,1770084642508,-500.0,0.00010199,2]
[404373525,1770084642519,-166.64459903,0.00010199,2]
[404373526,1770084642528,-150.0,0.00010199,2]
[404373528,1770084642537,-585.41927195,0.00010199,2]
[404373530,1770084642546,-150.0,0.00010199,2]
[404373532,1770084642555,-500.0,0.00010199,2]
[404373534,1770084642563,-500.0,0.00010199,2]
[404373535,1770084642573,-487.0,0.00010199,2]
[404373537,1770084642582,-500.0,0.00010199,2]
[404373539,1770084642591,-158.48775594,0.00010199,2]
[404373541,1770084642600,-150.0,0.00010199,2]